[Event "XTX Markets London Masters 2024"]
[Site "London"]
[Date "2024.11.30"]
[Round "3.21"]
[White "Pang, Ethan"]
[Black "Fernandez, Michael"]
[Result "1/2-1/2"]
[ECO "B14"]
[WhiteElo "2303"]
[BlackElo "2138"]
[Annotator "RC"]
[PlyCount "148"]
[EventDate "2024.11.28"]
[EventType "swiss"]
[EventCountry "ENG"]
[SourceTitle "playchess.com"]
[Source "ChessBase"]
[SourceQuality "1"]
[TimeControl "40/5400+30:1800+30"]

1. e4 {[%emt 0:05:14]} c6 {[%emt 0:01:42]} 2. d4 {[%emt 0:00:32]} d5 {[%emt 0:00:04]} 3. exd5 {[%emt 0:00:55]} cxd5 {[%emt 0:00:07]} 4. c4 {[%emt 0:00:45]} Nf6 {[%emt 0:00:07]} 5. Nc3 {[%emt 0:00:25]} g6 {[%emt 0:03:14]} 6. cxd5 {[%emt 0:01:34]} Nxd5 {[%emt 0:00:34]} 7. Bc4 {[%emt 0:05:30]} Nb6 {[%emt 0:00:07]} 8. Bb3 {[%emt 0:00:46]} Bg7 {[%emt 0:00:12]} 9. Nge2 {[%emt 0:02:45]} O-O {[%emt 0:00:36]} 10. O-O {[%emt 0:01:51]} Bf5 {[%emt 0:06:49]} 11. Bf4 {[%emt 0:08:21]} Nc6 {[%emt 0:00:51]} 12. Nb5 {[%emt 0:03:57]} Na5 {[%emt 0:06:45]} 13. Bc2 {[%emt 0:04:47]} Qd7 {[%emt 0:02:23]} 14. Bxf5 {[%emt 0:07:34]} Qxb5 {[%emt 0:06:25]} 15. Be4 {[%emt 0:05:41]} Qxb2 {[%emt 0:00:41]} 16. Bd2 {[%emt 0:08:43]} Nc6 {[%emt 0:07:14]} 17. Bc3 {[%emt 0:07:30]} Qa3 {[%emt 0:01:23]} 18. Qb1 {[%emt 0:06:34]} Rfd8 {[%emt 0:10:51]} 19. Rd1 {[%emt 0:02:47]} e6 {[%emt 0:02:04]} 20. Rd3 {[%emt 0:02:12]} Qe7 {[%emt 0:01:55]} 21. Qb3 {[%emt 0:02:10]} Rd7 {[%emt 0:05:56]} 22. Rad1 {[%emt 0:02:37]} Rad8 {[%emt 0:02:25]} 23. Bb2 {[%emt 0:03:14]} Qh4 {[%emt 0:02:50]} 24. Bf3 {[%emt 0:03:35]} Nxd4 {[%emt 0:07:31]} 25. Nxd4 {[%emt 0:03:06]} Bxd4 {[%emt 0:00:04]} 26. g3 {[%emt 0:00:23]} Qf6 {[%emt 0:00:24]} 27. Bxd4 {[%emt 0:01:30]} Rxd4 {[%emt 0:00:04]} 28. Rxd4 {[%emt 0:00:27]} Rxd4 {[%emt 0:00:03]} 29. Rxd4 {[%emt 0:00:10]} Qxd4 {[%emt 0:00:02]} 30. Bxb7 {[%emt 0:00:46]} Nd5 {[%emt 0:01:30]} 31. Kg2 {[%emt 0:03:08]} Kg7 {[%emt 0:00:48]} 32. Qa3 {[%emt 0:02:10]} Nf6 {[%emt 0:01:04]} 33. Qf3 {[%emt 0:01:55]} h5 {[%emt 0:00:28]} 34. Bc6 {[%emt 0:01:19]} a5 {[%emt 0:00:59]} 35. Qe2 {[%emt 0:01:06]} h4 {[%emt 0:04:51]} 36. Bf3 {[%emt 0:01:02]} Nd7 {[%emt 0:04:22]} 37. Qe4 {[%emt 0:01:23]} Qxe4 {[%emt 0:00:36]} 38. Bxe4 {[%emt 0:00:04]} hxg3 {[%emt 0:03:03]} 39. hxg3 {[%emt 0:00:19]} Nc5 {[%emt 0:02:46]} 40. Bc2 {[%emt 0:01:02]} e5 {[%emt 0:00:43]} 41. Kf3 {[%emt 0:01:45]} Kf6 {[%emt 0:03:58]} 42. Ke3 {[%emt 0:04:13]} Ke6 {[%emt 0:00:07]} 43. Bd1 {[%emt 0:26:13]} Kd5 {[%emt 0:05:05]} 44. Be2 {[%emt 0:00:00]} f5 {[%emt 0:12:21]} 45. f4 {[%emt 0:00:00]} e4 {[%emt 0:02:39]} 46. Bb5 {[%emt 0:00:00]} Ne6 {[%emt 0:06:49]} 47. Be8 {[%emt 0:00:00]} g5 {[%emt 0:00:37]} 48. Bf7 {[%emt 0:00:00]} gxf4+ {[%emt 0:00:08]} 49. gxf4 {[%emt 0:00:00]} Kd6 {[%emt 0:00:11]} 50. Bg6 {[%emt 0:00:00]} Ng7 {[%emt 0:00:13]} 51. Bf7 {[%emt 0:00:00]} Ke7 {[%emt 0:00:35]} 52. Bc4 {[%emt 0:00:00]} Nh5 {[%emt 0:02:45]} 53. Be2 {[%emt 0:00:00]} Nf6 {[%emt 0:01:00]} 54. Kd4 {[%emt 0:00:00]} Kd6 {[%emt 0:00:07]} 55. Ba6 {[%emt 0:00:00]} Nh5 {[%emt 0:03:45]} 56. Bc8 {[%emt 0:00:00]} Ng7 {[%emt 0:00:02]} 57. Ke3 {[%emt 0:00:00]} Kc5 {[%emt 0:00:46]} 58. Ba6 {[%emt 0:00:00]} Ne8 {[%emt 0:01:04]} 59. Bc8 {[%emt 0:01:39]} Nd6 {[%emt 0:00:10]} 60. Be6 {[%emt 0:00:06]} Kb4 {[%emt 0:04:51]} 61. Kd4 {[%emt 0:01:09]} a4 {[%emt 0:00:02]} 62. Bd5 {[%emt 0:01:33]} a3 {[%emt 0:03:40]} 63. Be6 {[%emt 0:01:05]} Kb5 {[%emt 0:03:25]} 64. Bd7+ {[%emt 0:01:21]} Ka5 {[%emt 0:00:24]} 65. Kc3 {[%emt 0:02:06]} e3 {[%emt 0:02:01]} 66. Kd3 {[%emt 0:00:43]} Kb4 {[%emt 0:00:01]} 67. Kxe3 {[%emt 0:00:54]} Kc3 {[%emt 0:00:02]} 68. Be6 {[%emt 0:00:18]} Kb2 {[%emt 0:01:07]} 69. Kd3 {[%emt 0:00:49]} Nb7 {[%emt 0:01:47]} 70. Kc4 {[%emt 0:01:14]} Kxa2 {[%emt 0:00:11]} 71. Kc3+ {[%emt 0:00:04]} Ka1 {[%emt 0:00:41]} 72. Bxf5 {[%emt 0:00:31]} Nc5 {[%emt 0:00:11]} 73. Bg6 {[%emt 0:00:49]} a2 {[%emt 0:01:00]} 74. Bf7 {[%emt 0:00:15]} Kb1 {[%emt 0:00:08]} 1/2-1/2

[Event "XTX Markets London Masters 2024"]
[Site "London"]
[Date "2024.11.30"]
[Round "3.22"]
[White "Fava, Lorenzo"]
[Black "Willmoth, Robert F"]
[Result "1-0"]
[ECO "A21"]
[WhiteElo "2300"]
[BlackElo "2101"]
[Annotator "RC"]
[PlyCount "51"]
[EventDate "2024.11.28"]
[EventType "swiss"]
[EventCountry "ENG"]
[SourceTitle "playchess.com"]
[Source "ChessBase"]
[SourceQuality "1"]
[TimeControl "40/5400+30:1800+30"]

1. c4 {[%emt 0:00:01]} d6 {[%emt 0:00:57]} 2. g3 {[%emt 0:01:14]} e5 {[%emt 0:00:08]} 3. Bg2 {[%emt 0:00:22]} f5 {[%emt 0:00:26]} 4. d4 {[%emt 0:00:29]} Be7 {[%emt 0:00:05]} 5. Nc3 {[%emt 0:01:59]} Nf6 {[%emt 0:02:10]} 6. b3 {[%emt 0:02:02]} c6 {[%emt 0:01:08]} 7. Bb2 {[%emt 0:01:18]} O-O {[%emt 0:01:00]} 8. d5 {[%emt 0:02:40]} c5 {[%emt 0:04:39]} 9. Qc2 {[%emt 0:12:59]} Na6 {[%emt 0:05:02]} 10. Nf3 {[%emt 0:08:47]} Bd7 {[%emt 0:00:51]} 11. O-O {[%emt 0:01:33]} Qc8 {[%emt 0:00:05]} 12. a3 {[%emt 0:09:02]} Rb8 {[%emt 0:00:38]} 13. Nb5 {[%emt 0:05:28]} Ra8 {[%emt 0:07:21]} 14. Ng5 {[%emt 0:01:03]} e4 {[%emt 0:06:43]} 15. Rad1 {[%emt 0:08:28]} h6 {[%emt 0:13:00]} 16. Nh3 {[%emt 0:00:06]} g5 {[%emt 0:00:16]} 17. f3 {[%emt 0:01:15]} exf3 {[%emt 0:03:16]} 18. exf3 {[%emt 0:00:04]} Nc7 {[%emt 0:02:45]} 19. Rfe1 {[%emt 0:10:11]} Bxb5 {[%emt 0:04:33]} 20. Rxe7 {[%emt 0:00:33]} Bd7 {[%emt 0:00:09]} 21. Rde1 {[%emt 0:04:59]} Rf7 {[%emt 0:03:34]} 22. Qd2 {[%emt 0:07:03]} Nce8 {[%emt 0:21:47]} 23. Nxg5 {[%emt 0:01:04]} Rxe7 {[%emt 0:01:39]} 24. Rxe7 {[%emt 0:00:01]} Kf8 {[%emt 0:02:04]} 25. Bxf6 {[%emt 0:01:02]} Nxf6 {[%emt 0:00:34]} 26. Rf7+ {[%emt 0:00:04]} 1-0

[Event "XTX Markets London Masters 2024"]
[Site "London"]
[Date "2024.11.30"]
[Round "3.23"]
[White "Kovalskyi, Roman"]
[Black "Haydon, David L"]
[Result "0-1"]
[ECO "B01"]
[WhiteElo "2124"]
[BlackElo "2294"]
[Annotator "RC"]
[PlyCount "66"]
[EventDate "2024.11.28"]
[EventType "swiss"]
[EventCountry "ENG"]
[SourceTitle "playchess.com"]
[Source "ChessBase"]
[SourceQuality "1"]
[TimeControl "40/5400+30:1800+30"]

1. e4 {[%emt 0:07:49]} d5 {[%emt 0:01:55]} 2. exd5 {[%emt 0:00:07]} Qxd5 {[%emt 0:00:09]} 3. Nc3 {[%emt 0:00:04]} Qd6 {[%emt 0:00:25]} 4. d4 {[%emt 0:00:09]} Nf6 {[%emt 0:00:47]} 5. Nf3 {[%emt 0:00:06]} c6 {[%emt 0:01:56]} 6. Ne5 {[%emt 0:00:06]} Nbd7 {[%emt 0:01:15]} 7. Nc4 {[%emt 0:00:06]} Qc7 {[%emt 0:02:05]} 8. a4 {[%emt 0:00:06]} Nb6 {[%emt 0:02:16]} 9. Ne5 {[%emt 0:00:06]} e6 {[%emt 0:01:01]} 10. a5 {[%emt 0:08:37]} Nbd5 {[%emt 0:01:23]} 11. Bd3 {[%emt 0:01:57]} Bb4 {[%emt 0:02:11]} 12. O-O {[%emt 0:00:06]} Bxa5 {[%emt 0:08:45]} 13. Nxd5 {[%emt 0:04:06]} exd5 {[%emt 0:03:47]} 14. c3 {[%emt 0:01:08]} Qd8 {[%emt 0:00:55]} 15. Re1 {[%emt 0:02:18]} O-O {[%emt 0:05:52]} 16. Bg5 {[%emt 0:05:37]} Bc7 {[%emt 0:01:17]} 17. Bc2 {[%emt 0:05:55]} Qd6 {[%emt 0:04:56]} 18. Bh4 {[%emt 0:08:04]} Ne4 {[%emt 0:09:39]} 19. f3 {[%emt 0:10:18]} Qh6 {[%emt 0:01:50]} 20. Be7 {[%emt 0:07:23]} Re8 {[%emt 0:03:39]} 21. Ba3 {[%emt 0:00:05]} Rxe5 {[%emt 0:05:31]} 22. dxe5 {[%emt 0:35:20]} Bb6+ {[%emt 0:00:03]} 23. Kf1 {[%emt 0:00:06]} Ng3+ {[%emt 0:00:13]} 24. hxg3 {[%emt 0:00:25]} Qh1+ {[%emt 0:00:05]} 25. Ke2 {[%emt 0:00:04]} Qxg2+ {[%emt 0:00:10]} 26. Kd3 {[%emt 0:00:12]} Bf5+ {[%emt 0:00:03]} 27. Re4 {[%emt 0:00:07]} dxe4+ {[%emt 0:00:09]} 28. Kc4 {[%emt 0:00:21]} Be6+ {[%emt 0:02:37]} 29. Kb4 {[%emt 0:00:19]} Rd8 {[%emt 0:00:16]} 30. Qb1 {[%emt 0:00:40]} Rd4+ {[%emt 0:00:44]} 31. c4 {[%emt 0:00:58]} Qd2+ {[%emt 0:00:19]} 32. Kb3 {[%emt 0:00:13]} Bxc4+ {[%emt 0:00:09]} 33. Ka4 {[%emt 0:00:08]} Qa5# {[%emt 0:00:12]} 0-1

[Event "XTX Markets London Masters 2024"]
[Site "London"]
[Date "2024.11.30"]
[Round "3.25"]
[White "Rushbrooke, Remy"]
[Black "Radovanovic, Jovica"]
[Result "0-1"]
[ECO "D01"]
[WhiteElo "2074"]
[BlackElo "2248"]
[Annotator "RC"]
[PlyCount "92"]
[EventDate "2024.11.28"]
[EventType "swiss"]
[EventCountry "ENG"]
[SourceTitle "playchess.com"]
[Source "ChessBase"]
[SourceQuality "1"]
[TimeControl "40/5400+30:1800+30"]

1. d4 {[%emt 0:00:28]} Nf6 {[%emt 0:00:40]} 2. Nc3 {[%emt 0:00:24]} d5 {[%emt 0:00:12]} 3. Bg5 {[%emt 0:00:18]} c6 {[%emt 0:02:09]} 4. e3 {[%emt 0:00:14]} Qb6 {[%emt 0:01:25]} 5. Rb1 {[%emt 0:04:00]} Bf5 {[%emt 0:01:46]} 6. Bxf6 {[%emt 0:00:11]} exf6 {[%emt 0:01:01]} 7. Bd3 {[%emt 0:00:06]} Bxd3 {[%emt 0:07:18]} 8. Qxd3 {[%emt 0:00:03]} Bb4 {[%emt 0:00:35]} 9. Nge2 {[%emt 0:00:13]} Qa6 {[%emt 0:03:00]} 10. Qxa6 {[%emt 0:00:40]} Nxa6 {[%emt 0:00:06]} 11. O-O {[%emt 0:00:36]} Nc7 {[%emt 0:05:49]} 12. e4 {[%emt 0:06:25]} O-O-O {[%emt 0:02:08]} 13. exd5 {[%emt 0:00:07]} Nxd5 {[%emt 0:04:26]} 14. Nxd5 {[%emt 0:00:29]} Rxd5 {[%emt 0:00:41]} 15. c3 {[%emt 0:01:27]} Bd6 {[%emt 0:00:56]} 16. Rfe1 {[%emt 0:00:48]} Re8 {[%emt 0:02:08]} 17. Ng3 {[%emt 0:00:16]} Re6 {[%emt 0:04:47]} 18. Rbd1 {[%emt 0:09:48]} g6 {[%emt 0:11:00]} 19. Ne4 {[%emt 0:04:37]} c5 {[%emt 0:19:39]} 20. Kf1 {[%emt 0:21:38]} cxd4 {[%emt 0:10:35]} 21. Rxd4 {[%emt 0:01:40]} Rxd4 {[%emt 0:00:13]} 22. cxd4 {[%emt 0:00:01]} Kd7 {[%emt 0:02:57]} 23. d5 {[%emt 0:08:43]} Re5 {[%emt 0:01:04]} 24. Nxf6+ {[%emt 0:05:16]} Ke7 {[%emt 0:00:20]} 25. Ne4 {[%emt 0:01:36]} Bb4 {[%emt 0:03:58]} 26. Re2 {[%emt 0:03:19]} Kf8 {[%emt 0:09:14]} 27. a3 {[%emt 0:02:36]} Ba5 {[%emt 0:01:19]} 28. b4 {[%emt 0:00:51]} Bb6 {[%emt 0:00:58]} 29. Nc3 {[%emt 0:01:12]} Bd4 {[%emt 0:00:46]} 30. Rxe5 {[%emt 0:00:12]} Bxe5 {[%emt 0:00:01]} 31. Ne4 {[%emt 0:03:13]} b5 {[%emt 0:01:11]} 32. Ke2 {[%emt 0:05:13]} Ke7 {[%emt 0:02:36]} 33. Kd3 {[%emt 0:13:53]} Bxh2 {[%emt 0:00:24]} 34. Kd4 {[%emt 0:03:43]} Bd6 {[%emt 0:00:13]} 35. Nc3 {[%emt 0:02:25]} a6 {[%emt 0:00:10]} 36. Ne4 {[%emt 0:00:05]} h5 {[%emt 0:00:37]} 37. f3 {[%emt 0:00:21]} f5 {[%emt 0:01:05]} 38. Nc5 {[%emt 0:01:20]} g5 {[%emt 0:00:39]} 39. Ne6 {[%emt 0:01:00]} Kf6 {[%emt 0:00:55]} 40. Nc5 {[%emt 0:00:14]} h4 {[%emt 0:00:39]} 41. Nb7 {[%emt 0:30:31]} Be5+ {[%emt 0:30:43]} 42. Kc5 {[%emt 0:00:03]} g4 {[%emt 0:00:05]} 43. fxg4 {[%emt 0:00:01]} fxg4 {[%emt 0:00:05]} 44. d6 {[%emt 0:00:47]} Ke6 {[%emt 0:01:26]} 45. Nd8+ {[%emt 0:00:00]} Kd7 {[%emt 0:00:00]} 46. Nf7 {[%emt 0:00:00]} Bf4 {[%emt 0:00:00]} 0-1

[Event "XTX Markets London Masters 2024"]
[Site "London"]
[Date "2024.11.30"]
[Round "3.26"]
[White "Dong, Bao Nghia"]
[Black "Bird, Joel"]
[Result "1/2-1/2"]
[ECO "D15"]
[WhiteElo "2247"]
[BlackElo "2001"]
[Annotator "RC"]
[PlyCount "94"]
[EventDate "2024.11.28"]
[EventType "swiss"]
[EventCountry "ENG"]
[SourceTitle "playchess.com"]
[Source "ChessBase"]
[SourceQuality "1"]
[TimeControl "40/5400+30:1800+30"]

1. d4 {[%emt 0:02:38]} d5 {[%emt 0:00:10]} 2. c4 {[%emt 0:00:04]} c6 {[%emt 0:00:07]} 3. Nc3 {[%emt 0:00:07]} Nf6 {[%emt 0:00:04]} 4. Nf3 {[%emt 0:00:04]} dxc4 {[%emt 0:00:16]} 5. e3 {[%emt 0:00:06]} b5 {[%emt 0:00:12]} 6. a4 {[%emt 0:00:05]} b4 {[%emt 0:00:04]} 7. Na2 {[%emt 0:00:05]} e6 {[%emt 0:00:13]} 8. Bxc4 {[%emt 0:00:04]} Nbd7 {[%emt 0:01:37]} 9. O-O {[%emt 0:00:08]} Bb7 {[%emt 0:00:08]} 10. Bd2 {[%emt 0:00:17]} a5 {[%emt 0:00:14]} 11. Nc1 {[%emt 0:00:06]} Be7 {[%emt 0:00:09]} 12. Nb3 {[%emt 0:00:07]} O-O {[%emt 0:00:24]} 13. Qe2 {[%emt 0:00:04]} c5 {[%emt 0:02:08]} 14. Rfd1 {[%emt 0:00:11]} Qb6 {[%emt 0:00:53]} 15. Be1 {[%emt 0:00:22]} Rfd8 {[%emt 0:01:28]} 16. dxc5 {[%emt 0:00:34]} Nxc5 {[%emt 0:00:26]} 17. Nbd4 {[%emt 0:00:07]} Nfe4 {[%emt 0:04:35]} 18. Bb5 {[%emt 0:01:32]} Bf6 {[%emt 0:06:42]} 19. Rac1 {[%emt 0:03:17]} Rac8 {[%emt 0:06:27]} 20. h3 {[%emt 0:00:16]} Nd6 {[%emt 0:09:13]} 21. Nh2 {[%emt 0:03:15]} Nxb5 {[%emt 0:04:20]} 22. axb5 {[%emt 0:00:12]} Bxd4 {[%emt 0:07:18]} 23. Rxd4 {[%emt 0:01:20]} Nb3 {[%emt 0:21:03]} 24. Rxc8 {[%emt 0:00:16]} Rxc8 {[%emt 0:00:26]} 25. Rd7 {[%emt 0:00:55]} Nc5 {[%emt 0:02:25]} 26. Rd1 {[%emt 0:00:12]} Rd8 {[%emt 0:05:11]} 27. Nf3 {[%emt 0:02:14]} Rxd1 {[%emt 0:08:19]} 28. Qxd1 {[%emt 0:00:05]} h6 {[%emt 0:00:32]} 29. Ne5 {[%emt 0:00:15]} Bd5 {[%emt 0:03:49]} 30. Qh5 {[%emt 0:02:54]} Qb7 {[%emt 0:00:53]} 31. f3 {[%emt 0:00:06]} Na4 {[%emt 0:04:41]} 32. e4 {[%emt 0:01:48]} Bb3 {[%emt 0:00:04]} 33. Bf2 {[%emt 0:00:32]} Nxb2 {[%emt 0:01:20]} 34. b6 {[%emt 0:02:05]} Nc4 {[%emt 0:09:59]} 35. Nxf7 {[%emt 0:01:28]} Nxb6 {[%emt 0:00:16]} 36. Nd6 {[%emt 0:00:07]} Qc7 {[%emt 0:00:50]} 37. Qxa5 {[%emt 0:06:24]} Qxd6 {[%emt 0:00:21]} 38. Bxb6 {[%emt 0:00:05]} Bc4 {[%emt 0:01:09]} 39. Bc5 {[%emt 0:09:14]} Qd1+ {[%emt 0:00:02]} 40. Kh2 {[%emt 0:00:07]} b3 {[%emt 0:00:29]} 41. Qa8+ {[%emt 0:31:26]} Kh7 {[%emt 0:02:23]} 42. Qa7 {[%emt 0:00:00]} Qd2 {[%emt 0:04:29]} 43. Bd4 {[%emt 0:00:00]} Qf4+ {[%emt 0:00:54]} 44. Kg1 {[%emt 0:00:00]} Qc1+ {[%emt 0:01:14]} 45. Kh2 {[%emt 0:00:00]} Qf4+ {[%emt 0:03:31]} 46. Kg1 {[%emt 0:00:00]} Qc1+ {[%emt 0:04:43]} 47. Kh2 {[%emt 0:00:00]} Qf4+ {[%emt 0:01:29]} 1/2-1/2

[Event "XTX Markets London Masters 2024"]
[Site "London"]
[Date "2024.11.30"]
[Round "3.27"]
[White "Zhang, Kendrick Botong"]
[Black "Carlin, John D"]
[Result "0-1"]
[ECO "B90"]
[WhiteElo "2011"]
[BlackElo "2235"]
[Annotator "RC"]
[PlyCount "124"]
[EventDate "2024.11.28"]
[EventType "swiss"]
[EventCountry "ENG"]
[SourceTitle "playchess.com"]
[Source "ChessBase"]
[SourceQuality "1"]
[TimeControl "40/5400+30:1800+30"]

1. e4 {[%emt 0:00:04]} c5 {[%emt 0:00:06]} 2. Nf3 {[%emt 0:00:05]} d6 {[%emt 0:00:03]} 3. d4 {[%emt 0:00:12]} cxd4 {[%emt 0:00:06]} 4. Nxd4 {[%emt 0:00:05]} Nf6 {[%emt 0:00:16]} 5. Nc3 {[%emt 0:00:08]} a6 {[%emt 0:00:12]} 6. h3 {[%emt 0:00:27]} e5 {[%emt 0:05:22]} 7. Nf3 {[%emt 0:00:25]} Qc7 {[%emt 0:02:06]} 8. Bg5 {[%emt 0:04:59]} Nbd7 {[%emt 0:02:47]} 9. Be2 {[%emt 0:11:06]} Be7 {[%emt 0:02:11]} 10. O-O {[%emt 0:01:44]} O-O {[%emt 0:02:10]} 11. Qd2 {[%emt 0:03:22]} b6 {[%emt 0:04:23]} 12. Rad1 {[%emt 0:08:22]} Bb7 {[%emt 0:07:28]} 13. Qe3 {[%emt 0:05:34]} b5 {[%emt 0:06:28]} 14. a3 {[%emt 0:09:21]} Rac8 {[%emt 0:03:02]} 15. Nh4 {[%emt 0:06:36]} Rfe8 {[%emt 0:12:47]} 16. Nf5 {[%emt 0:04:59]} Bf8 {[%emt 0:00:05]} 17. Rd2 {[%emt 0:06:06]} h6 {[%emt 0:30:38]} 18. Bxf6 {[%emt 0:03:30]} Nxf6 {[%emt 0:00:03]} 19. Rfd1 {[%emt 0:00:28]} Red8 {[%emt 0:06:26]} 20. Qg3 {[%emt 0:04:43]} g6 {[%emt 0:03:45]} 21. Bf3 {[%emt 0:02:49]} Qb6 {[%emt 0:03:55]} 22. Qh4 {[%emt 0:06:18]} d5 {[%emt 0:01:01]} 23. Nxh6+ {[%emt 0:01:40]} Bxh6 {[%emt 0:00:03]} 24. Qxh6 {[%emt 0:00:09]} dxe4 {[%emt 0:02:01]} 25. Be2 {[%emt 0:03:09]} Rd4 {[%emt 0:01:04]} 26. Bf1 {[%emt 0:01:16]} Rcd8 {[%emt 0:01:00]} 27. Ne2 {[%emt 0:00:40]} Rxd2 {[%emt 0:01:04]} 28. Rxd2 {[%emt 0:00:08]} Rxd2 {[%emt 0:00:07]} 29. Qxd2 {[%emt 0:00:06]} Nd5 {[%emt 0:00:09]} 30. Nc1 {[%emt 0:08:54]} e3 {[%emt 0:02:04]} 31. Qe1 {[%emt 0:01:14]} Qd4 {[%emt 0:00:46]} 32. Nd3 {[%emt 0:02:13]} e4 {[%emt 0:01:07]} 33. c3 {[%emt 0:00:09]} exf2+ {[%emt 0:00:03]} 34. Nxf2 {[%emt 0:00:24]} Qe3 {[%emt 0:00:10]} 35. Qxe3 {[%emt 0:01:18]} Nxe3 {[%emt 0:00:01]} 36. Be2 {[%emt 0:00:08]} f5 {[%emt 0:00:20]} 37. Nd1 {[%emt 0:00:32]} Nxd1 {[%emt 0:00:53]} 38. Bxd1 {[%emt 0:00:11]} f4 {[%emt 0:00:10]} 39. a4 {[%emt 0:01:06]} Kg7 {[%emt 0:00:03]} 40. axb5 {[%emt 0:01:12]} axb5 {[%emt 0:00:02]} 41. Be2 {[%emt 0:31:18]} Bc6 {[%emt 0:30:04]} 42. Kf2 {[%emt 0:02:41]} Kf6 {[%emt 0:01:45]} 43. Bg4 {[%emt 0:00:00]} Bd5 {[%emt 0:00:00]} 44. Bd7 {[%emt 0:00:00]} e3+ {[%emt 0:00:00]} 45. Kf1 {[%emt 0:00:00]} Bc4+ {[%emt 0:00:00]} 46. Ke1 {[%emt 0:00:00]} Kg5 {[%emt 0:00:00]} 47. b3 {[%emt 0:00:00]} Bxb3 {[%emt 0:00:00]} 48. Bxb5 {[%emt 0:00:00]} Bd5 {[%emt 0:00:00]} 49. Kf1 {[%emt 0:00:00]} Be4 {[%emt 0:01:47]} 50. Kg1 {[%emt 0:00:00]} Kh4 {[%emt 0:00:20]} 51. Kh2 {[%emt 0:00:00]} Kg5 {[%emt 0:02:19]} 52. Ba6 {[%emt 0:00:00]} Kh4 {[%emt 0:01:05]} 53. Be2 {[%emt 0:00:00]} g5 {[%emt 0:01:02]} 54. c4 {[%emt 0:03:08]} Bb7 {[%emt 0:00:40]} 55. Bg4 {[%emt 0:03:08]} Bc8 {[%emt 0:00:57]} 56. Bf3 {[%emt 0:00:45]} g4 {[%emt 0:00:07]} 57. hxg4 {[%emt 0:00:08]} Bxg4 {[%emt 0:00:03]} 58. Bxg4 {[%emt 0:01:56]} Kxg4 {[%emt 0:00:03]} 59. Kg1 {[%emt 0:00:08]} Kg3 {[%emt 0:00:06]} 60. Kf1 {[%emt 0:00:05]} e2+ {[%emt 0:00:09]} 61. Kxe2 {[%emt 0:00:22]} Kxg2 {[%emt 0:00:05]} 62. c5 {[%emt 0:00:03]} f3+ {[%emt 0:00:06]} 0-1

[Event "XTX Markets London Masters 2024"]
[Site "London"]
[Date "2024.11.30"]
[Round "3.28"]
[White "Dasgupta, Avyukt"]
[Black "Zhao, George"]
[Result "1/2-1/2"]
[ECO "C01"]
[WhiteElo "2034"]
[BlackElo "2233"]
[Annotator "RC"]
[PlyCount "70"]
[EventDate "2024.11.28"]
[EventType "swiss"]
[EventCountry "ENG"]
[SourceTitle "playchess.com"]
[Source "ChessBase"]
[SourceQuality "1"]
[TimeControl "40/5400+30:1800+30"]

1. e4 {[%emt 0:00:04]} e6 {[%emt 0:00:10]} 2. d4 {[%emt 0:00:04]} d5 {[%emt 0:00:07]} 3. exd5 {[%emt 0:00:02]} exd5 {[%emt 0:00:05]} 4. Nf3 {[%emt 0:00:02]} Bd6 {[%emt 0:00:10]} 5. Bd3 {[%emt 0:00:05]} Ne7 {[%emt 0:00:14]} 6. O-O {[%emt 0:00:20]} Nbc6 {[%emt 0:00:07]} 7. c3 {[%emt 0:00:11]} Bg4 {[%emt 0:03:11]} 8. Bg5 {[%emt 0:03:17]} f6 {[%emt 0:01:09]} 9. Bh4 {[%emt 0:00:47]} Qd7 {[%emt 0:00:19]} 10. Nbd2 {[%emt 0:02:07]} O-O-O {[%emt 0:03:51]} 11. Bg3 {[%emt 0:04:31]} g5 {[%emt 0:03:26]} 12. b4 {[%emt 0:02:35]} Nf5 {[%emt 0:00:40]} 13. Qa4 {[%emt 0:15:57]} Kb8 {[%emt 0:02:11]} 14. Bb5 {[%emt 0:15:08]} Nfe7 {[%emt 0:01:51]} 15. Rae1 {[%emt 0:04:25]} a6 {[%emt 0:05:16]} 16. Bxc6 {[%emt 0:00:31]} Nxc6 {[%emt 0:00:34]} 17. Bxd6 {[%emt 0:03:40]} Qxd6 {[%emt 0:00:47]} 18. b5 {[%emt 0:01:56]} axb5 {[%emt 0:00:02]} 19. Qxb5 {[%emt 0:00:03]} Na7 {[%emt 0:02:34]} 20. Qd3 {[%emt 0:03:07]} h5 {[%emt 0:02:55]} 21. Re3 {[%emt 0:05:15]} h4 {[%emt 0:01:21]} 22. Rb1 {[%emt 0:05:17]} Bc8 {[%emt 0:03:22]} 23. Nf1 {[%emt 0:06:31]} Rh5 {[%emt 0:05:39]} 24. N3d2 {[%emt 0:05:03]} g4 {[%emt 0:01:27]} 25. Qe2 {[%emt 0:04:26]} Rdh8 {[%emt 0:04:28]} 26. Re8 {[%emt 0:01:52]} Qc6 {[%emt 0:12:03]} 27. Rxh8 {[%emt 0:02:15]} Rxh8 {[%emt 0:04:09]} 28. Qe3 {[%emt 0:00:06]} Nb5 {[%emt 0:01:27]} 29. Rb3 {[%emt 0:06:07]} Re8 {[%emt 0:01:03]} 30. Qd3 {[%emt 0:01:45]} Nd6 {[%emt 0:00:33]} 31. Ne3 {[%emt 0:00:54]} f5 {[%emt 0:02:03]} 32. f4 {[%emt 0:01:16]} Ne4 {[%emt 0:07:57]} 33. Nxe4 {[%emt 0:00:08]} Rxe4 {[%emt 0:00:25]} 34. g3 {[%emt 0:00:45]} Qe6 {[%emt 0:00:40]} 35. Kf2 {[%emt 0:00:03]} hxg3+ {[%emt 0:05:21]} 1/2-1/2